{"text_format":"1","workbook":"xlsx","n_sheets":10,"sheets":["Калькулятор","С1","С2","С3","C4","C5","C8","ММ","Расчет","1"],"not_rendered":{"charts":0,"images":0,"macros":1,"external_links":1,"defined_names":36,"comments":0,"pivot_tables":0},"unopened":[],"bounds":{"document_bytes":16777216,"sheet_cells":100000,"rows_first":2000,"rows_last":500,"rows_between":2000,"halvings":0,"cell_chars":16384,"cell_head_chars":4096},"cells_cut":0,"cells_raw":0,"read":"whole","date_system":"1900"}

{"sheet":"Калькулятор","index":0,"n_rows":20,"n_cols":2,"rows_kept":20,"cut":false,"hidden":false,"merged":[[1,1,1,2],[19,1,19,2]]}
[]
[null,"Расчет платы за технологическое присоединение к электрическим сетям ООО \"ЙОЭсК\""]
[]
[null,"Уровень напряжения энергопринимающих устройств, кВ:"]
[]
[null,"Максимальная мощность (с учетом ранее присоединенной), кВт:"]
[]
[null,"Максимальная мощность, кВт:"]
[]
[null,"Постоянная или временная схема присоединения:"]
[]
[null,"Есть ли необходимость строительства воздушных линий?"]
[null,"Есть ли необходимость строительства кабельных линий?"]
[null,"Есть ли необходимость строительства транформаторных подстанций?"]
[]
[]
[]
[]
[]
[null,"Внимание! Данные расчеты носят справочный характер и не могут являться окончательными для оплаты стоимости технологического присоединения. \nКалькулятор расчета платы за технологическое присоединение к электрическим сетям предназначен для примерного расчета стоимости размера платы за технологическое присоединение к электрическим сетям ООО \"ЙОЭсК\""]

{"sheet":"С1","index":1,"n_rows":15,"n_cols":3,"rows_kept":15,"cut":false,"hidden":false,"merged":[[6,1,7,1],[6,0,7,0],[3,0,3,2],[1,0,1,2],[14,0,14,2]]}
[]
["Стандартизированные тарифные ставки за технологическое присоединениеи энергопринимающих устройств заявителей к электрическим сетям территориальных сетевых организаций, не связанных со строительством объектов электросетевого хозяйства с 01.01.2021"]
[]
["Стандартизированные тарифные ставки на покрытие расходово за технологическое присоединение энергопринимающих устройств заявителей к электрическим сетям территориальных сетевых организаций, за исключением мероприятий \"последней мили\""]
[]
[]
["Стандартизированная тарифная ставка ","Наименование мероприятия ","Стандартизированная тарифная ставка (С1), руб. за одно присоединение (без НДС)"]
[null,null,"Для постоянной и временной схемы электроснабжения"]
["С1","Итого стандартизированная ставка ",18226]
["С1.1","Подготовка и выдача сетевой организацией технических условий заявителю",4252]
["С1.2","Проверка сетевой организацией выполнения заявителем технических условий ",13974]
["С1.3","Участие сетевой организации в осмотре должностным лицом органа федерального государственного энергетического надзорар присоединяемых устройств заявителя ",0]
["С1.4","Фактические действия по присоединению и обеспечению работы устройств в электрической сети ",0]
[]
["Стандартизированные тарифные ставки определены для постоянной схемы электроснабжения и для технологического присоединения энергопринимающих устройств с примененением временной схемы электроснабжения, в том числе для обеспечения электрической энергией передвижных энергопринимающих устройств с максимальной мощностью до 150 кВт включительно (с учетом мощности ранее присоединенных в данной точке присоединения энергопринимающих устройств). "]

{"sheet":"С2","index":2,"n_rows":20,"n_cols":3,"rows_kept":20,"cut":false,"hidden":false,"merged":[[4,0,4,2],[19,0,19,2]]}
[]
["Стандартизированные тарифные ставки на покрытие расходов"]
["на строительство воздушных линий электропередачи"]
[]
["Стандартизированная тарифная ставка (C2i), руб./км (без НДС)"]
["Дифференциация в зависимости от вида используемого материала","Ставка","Длина линии, км"]
["Для территорий городских населенных пунктов и территорий, не относящихся к городским населенным пунктам "]
["воздушные линии на деревянных опорах с изолированным алюминиевым проводом сечением до 50 квадратных мм включительно, 0,4 кВ и ниже",143590]
["воздушные линии на железобетонных опорах с изолированным алюминиевым проводом сечением до 50 квадратных мм включительно, 0,4 кВ и ниже",523495]
["воздушные линии на железобетонных опорах с изолированным алюминиевым проводом сечением до 50 квадратных мм включительно, 1-20 кВ",2661384]
["воздушные линии на железобетонных опорах с изолированным алюминиевым проводом сечением от 50 до 100 квадратных мм включительно, 0,4 кВ и ниже",1043160]
["воздушные линии на железобетонных опорах с изолированным алюминиевым проводом сечением от 50 до 100 квадратных мм включительно, 1-20 кВ",2296060]
["воздушные линии на железобетонных опорах с изолированным алюминиевым проводом сечением от 100 до 200 квадратных мм включительно, 0,4 кВ и ниже",1214355]
["воздушные линии на железобетонных опорах с неизолированным сталалюминиевым проводом сечением  до 50 квадратных мм включительно, 0,4 кВ и ниже",173111]
["воздушные линии на железобетонных опорах с неизолированным сталалюминиевым проводом сечением  до 50 квадратных мм включительно, 1-20 кВ",1782247]
["воздушные линии на железобетонных опорах с неизолированным сталалюминиевым проводом сечением  от 50 до 100 квадратных мм включительно, 1-20 кВ",2702513]
["воздушные линии на железобетонных опорах с неизолированным алюминиевым проводом сечением до 50 квадратных мм включительно, 0,4 кВ и ниже",29747]
["воздушные линии на железобетонных опорах с неизолированным алюминиевым проводом сечением до 50 квадратных мм включительно, 1-20 кВ",1734029]
[]
["1) Для заявителей, осуществляющих технологическое присоединение своих энергопринимающих устройств максимальной мощностью не более 150 кВт (с учетом мощности ранее присоединенных в данной точке присоединения энергопринимающих устройств), стандартизированные тарифные ставки на покрытие расходов, связанных со строительством , равны нулю.\n2) Размер стандартизированных тарифных ставок за технологическое присоединение  определен для третьей категории надежности электроснабжения, что предполагает технологическое присоединение к одному источнику энергоснабжения.\n"]

{"sheet":"С3","index":3,"n_rows":22,"n_cols":3,"rows_kept":22,"cut":false,"hidden":false,"merged":[[4,0,4,2],[21,0,21,2]]}
[]
["Стандартизированные тарифные ставки на покрытие расходов"]
["на строительство кабельных линий электропередачи"]
[]
["Стандартизированная тарифная ставка (C3i), руб./км (без НДС)"]
["Дифференциация в зависимости от вида используемого материала","Ставка","Длина линии, км"]
["Для территорий городских населенных пунктов и территорий, не относящихся к городским населенным пунктам "]
["кабельные линии в траншеях одножильные с резиновой или пластмассовой изоляцией сечением провода от 500 до 800 квадратных мм включительно, 1-20 кВ",4117364]
["кабельные линии в траншеях многожильные с резиновой или пластмассовой изоляцией сечением провода до 50 квадратных мм включительно,  0,4 кВ и ниже",631082]
["кабельные линии в траншеях многожильные с резиновой или пластмассовой изоляцией сечением провода от 50 до 100 квадратных мм включительно,  0,4 кВ и ниже",724220]
["кабельные линии в траншеях многожильные с резиновой или пластмассовой изоляцией сечением провода от 50 до 100 квадратных мм включительно,  1-20 кВ",1655090]
["кабельные линии в траншеях многожильные с резиновой или пластмассовой изоляцией сечением провода от 100 до 200 квадратных мм включительно,  0,4 кВ и ниже",1066523]
["кабельные линии в траншеях многожильные с бумажной изоляцией сечением провода до 50 квадратных мм включительно,  0,4 кВ и ниже",1292685]
["кабельные линии в траншеях многожильные с бумажной изоляцией сечением провода до 50 квадратных мм включительно,  1-20 кВ",1420989]
["кабельные линии в траншеях многожильные с бумажной изоляцией сечением провода от 50 до 100 квадратных мм включительно,  0,4 кВ и ниже",1595593]
["кабельные линии в траншеях многожильные с бумажной изоляцией сечением провода от 50 до 100 квадратных мм включительно,  1-20 кВ",2709985]
["кабельные линии в траншеях многожильные с бумажной изоляцией сечением провода от 100 до 200 квадратных мм включительно,  0,4 кВ и ниже",2136990]
["кабельные линии в траншеях многожильные с бумажной изоляцией сечением провода от 100 до 200 квадратных мм включительно,  1-20 кВ",1973196]
["кабельные линии в траншеях многожильные с бумажной изоляцией сечением провода от 200 до 500 квадратных мм включительно,  0,4 кВ и ниже",2701984]
["кабельные линии в траншеях многожильные с бумажной изоляцией сечением провода от 200 до 500 квадратных мм включительно,  1-20 кВ",2401898]
[]
["1) Для заявителей, осуществляющих технологическое присоединение своих энергопринимающих устройств максимальной мощностью не более 150 кВт (с учетом мощности ранее присоединенных в данной точке присоединения энергопринимающих устройств), стандартизированные тарифные ставки на покрытие расходов, связанных со строительством , равны нулю.\n2) Размер стандартизированных тарифных ставок за технологическое присоединение  определен для третьей категории надежности электроснабжения, что предполагает технологическое присоединение к одному источнику энергоснабжения.\n"]

{"sheet":"C4","index":4,"n_rows":11,"n_cols":3,"rows_kept":11,"cut":false,"hidden":false,"merged":[[5,0,5,2],[7,0,7,2],[10,0,10,2]]}
[]
["Стандартизированные тарифные ставки на покрытие расходов"]
["на строительство пунктов секционирования (реклоузеров,"]
["распределительных пунктов, переключательных пунктов) "]
[]
["Стандартизированная тарифная ставка (C4i), руб./шт. (без НДС)"]
["Тип и мощность трансформаторной подстанции","Ставка","Количество РП, шт. "]
["Для территорий городских населенных пунктов и территорий, не относящихся к городским населенным пунктам "]
["распределительные пункты номинальным током от 250 до 500 А включительно 1-20 кВ",1444135]
[]
["1) Для заявителей, осуществляющих технологическое присоединение своих энергопринимающих устройств максимальной мощностью не более 150 кВт (с учетом мощности ранее присоединенных в данной точке присоединения энергопринимающих устройств), стандартизированные тарифные ставки на покрытие расходов, связанных со строительством , равны нулю.\n2) Размер стандартизированных тарифных ставок за технологическое присоединение  определен для третьей категории надежности электроснабжения, что предполагает технологическое присоединение к одному источнику энергоснабжения.\n"]

{"sheet":"C5","index":5,"n_rows":18,"n_cols":3,"rows_kept":18,"cut":false,"hidden":false,"merged":[[5,0,5,2],[7,0,7,2],[17,0,17,2]]}
[]
["Стандартизированные тарифные ставки на покрытие расходов"]
["на строительство трансформаторных подстанций, за исключением распределительных "]
["трансформаторных  подстанций с уровнем напряения до 35 кВ"]
[]
["Стандартизированная тарифная ставка (C5i), руб./кВт (без НДС)"]
["Тип и мощность трансформаторной подстанции","Ставка","Объем максимальной мощности, кВт "]
["Для территорий городских населенных пунктов и территорий, не относящихся к городским населенным пунктам "]
["однотрансформаторные подстанции (за исключением РТП) мощностью до 25 кВА включительно, 6(10)/0,4 кВ",13274]
["однотрансформаторные подстанции (за исключением РТП) мощностью от 25 до 100 кВА включительно, 6(10)/0,4 кВ",9087]
["однотрансформаторные подстанции (за исключением РТП) мощностью от 100 до 250 кВА включительно, 6(10)/0,4 кВ",6239]
["однотрансформаторные подстанции (за исключением РТП) мощностью от 250 до 400 кВА включительно, 6(10)/0,4 кВ",2781]
["двухрансформаторные подстанции (за исключением РТП) мощностью от 100 до 250 кВА включительно, 6(10)/0,4 кВ",4024]
["двухрансформаторные подстанции (за исключением РТП) мощностью от 250 до 400 кВА включительно, 6(10)/0,4 кВ",5540]
["двухрансформаторные подстанции (за исключением РТП) мощностью от 420 до 1000 кВА включительно, 6(10)/0,4 кВ",2810]
["двухрансформаторные подстанции (за исключением РТП) мощностью свыше 1000 кВА, 6(10)/0,4 кВ",4934]
[]
["1) Для заявителей, осуществляющих технологическое присоединение своих энергопринимающих устройств максимальной мощностью не более 150 кВт (с учетом мощности ранее присоединенных в данной точке присоединения энергопринимающих устройств), стандартизированные тарифные ставки на покрытие расходов, связанных со строительством трансформаторных подстанций, за исключением распределительных трансформаторных подстанций, с уровнем напряжения до 35 кВ, равны нулю.\n2) Размер стандартизированных тарифных ставок за технологическое присоединение  определен для третьей категории надежности электроснабжения, что предполагает технологическое присоединение к одному источнику энергоснабжения.\n"]

{"sheet":"C8","index":6,"n_rows":15,"n_cols":3,"rows_kept":15,"cut":false,"hidden":false,"merged":[[5,0,5,2],[7,0,7,2],[14,0,14,2]]}
[]
["Стандартизированные тарифные ставки на покрытие расходов"]
["на обеспечение средствами коммерческого учета"]
["электрической энергии (мощности)"]
[]
["Стандартизированная тарифная ставка (C8i), руб. за точку учета (без НДС)"]
["Тип прибора учета","Ставка","Количество точек учета, шт."]
["Для территорий городских населенных пунктов и территорий, не относящихся к городским населенным пунктам "]
["Средства коммерческого учета элекрической энергии (мощности) однофазные прямого включения, 0,4 кВ и ниже без ТТ",13190]
["Средства коммерческого учета элекрической энергии (мощности) о трехфазные прямого включения, 0,4 кВ и ниже без ТТ",20028]
["Средства коммерческого учета элекрической энергии (мощности) о трехфазные прямого включения, 1-20 кВ",338492]
["Средства коммерческого учета элекрической энергии (мощности) о трехфазные полукосвенного включения, 0,4 кВ и ниже с ТТ",28452]
["Средства коммерческого учета элекрической энергии (мощности) о трехфазные косвенного включения, 1-20 кВ",172039]
[]
["1) Размер стандартизированных тарифных ставок за технологическое присоединение  определен для третьей категории надежности электроснабжения, что предполагает технологическое присоединение к одному источнику энергоснабжения.\n"]

{"sheet":"ММ","index":7,"n_rows":58,"n_cols":6,"rows_kept":58,"cut":false,"hidden":false,"merged":[[0,1,0,3],[9,1,11,1],[57,0,57,3],[9,2,10,3],[9,0,11,0]]}
[]
[]
["Ставки за единицу максимальной мощности"]
["за технологическое присоединение энергопринимающих устройств"]
["заявителей к электрическим сетям территориальных сетевых"]
["организаций на территории Республики Марий Эл на уровне"]
["напряжения 20 кВ и менее и максимальной мощности менее 670 кВт"]
["с 1 января 2021 г."]
[]
["№ п/п","Наименование мероприятия","Размер ставок, руб./кВт (без НДС)"]
[]
[null,null,"для постоянной схемы электроснабжения\n\n","для временной схемы электроснабжения"]
[1,"Ставка за единицу максимальной мощности для определения платы за технологическое присоединение энергопринимающих устройств потребителей электрической энергии, объектов электросетевого хозяйства, принадлежащих сетевым организациям и иным лицам, не связанных со строительством объектов электросетевого хозяйства (С1maxN)а в том числе в разбивке по следующим мероприятиям",1303,277]
["1.1.","Подготовка и выдача сетевой организацией технических условий заявителю (С1.1maxN)",304,65]
["1.2.","Проверка сетевой организацией выполнения заявителем технических\nусловий (С1.2maxN)\n",999,212]
["2.","Ставка за единицу максимальной мощности на осуществление мероприятий: по строительству воздушных линий электропередачи (С2maxN), ","Для территорий городских населенных пунктов ","Для территорий, не относящихся к городским населенным пунктам ","Длина линии, км","Расчет"]
["2.1.","воздушные линии на деревянных опорах с изолированным алюминиевым проводом сечением до 50 квадратных мм включительно, 0,4 кВ и ниже",1256,1256,{"$f":"С2!C8","v":0},{"$f":"IF(E17>0,C17*Расчет!$C$8,0)","v":0}]
["2.2.","воздушные линии на железобетонных опорах с изолированным алюминиевым проводом сечением до 50 квадратных мм включительно, 0,4 кВ и ниже",4506,4506,{"$f":"С2!C9","v":0},{"$f":"IF(E18>0,C18*Расчет!$C$8,0)","v":0}]
["2.3.","воздушные линии на железобетонных опорах с изолированным алюминиевым проводом сечением до 50 квадратных мм включительно, 1-20 кВ",12171,12171,{"$f":"С2!C10","v":0},{"$f":"IF(E19>0,C19*Расчет!$C$8,0)","v":0}]
["2.4.","воздушные линии на железобетонных опорах с изолированным алюминиевым проводом сечением от 50 до 100 квадратных мм включительно, 0,4 кВ и ниже",10124,10124,{"$f":"С2!C11","v":0},{"$f":"IF(E20>0,C20*Расчет!$C$8,0)","v":0}]
["2.5.","воздушные линии на железобетонных опорах с изолированным алюминиевым проводом сечением от 50 до 100 квадратных мм включительно, 1-20 кВ",18145,18145,{"$f":"С2!C12","v":0},{"$f":"IF(E21>0,C21*Расчет!$C$8,0)","v":0}]
["2.6.","воздушные линии на железобетонных опорах с изолированным алюминиевым проводом сечением от 100 до 200 квадратных мм включительно, 0,4 кВ и ниже",3254,3254,{"$f":"С2!C13","v":0},{"$f":"IF(E22>0,C22*Расчет!$C$8,0)","v":0}]
["2.7.","воздушные линии на железобетонных опорах с неизолированным сталалюминиевым проводом сечением  до 50 квадратных мм включительно, 0,4 кВ и ниже",1537,1537,{"$f":"С2!C14","v":0},{"$f":"IF(E23>0,C23*Расчет!$C$8,0)","v":0}]
["2.8.","воздушные линии на железобетонных опорах с неизолированным сталалюминиевым проводом сечением  до 50 квадратных мм включительно, 1-20 кВ",9610,9610,{"$f":"С2!C15","v":0},{"$f":"IF(E24>0,C24*Расчет!$C$8,0)","v":0}]
["2.9.","воздушные линии на железобетонных опорах с неизолированным сталалюминиевым проводом сечением  от 50 до 100 квадратных мм включительно, 1-20 кВ",3378,3378,{"$f":"С2!C16","v":0},{"$f":"IF(E25>0,C25*Расчет!$C$8,0)","v":0}]
["2.10.","воздушные линии на железобетонных опорах с неизолированным алюминиевым проводом сечением до 50 квадратных мм включительно, 0,4 кВ и ниже",397,397,{"$f":"С2!C17","v":0},{"$f":"IF(E26>0,C26*Расчет!$C$8,0)","v":0}]
["2.11.","воздушные линии на железобетонных опорах с неизолированным алюминиевым проводом сечением до 50 квадратных мм включительно, 1-20 кВ",27022,27022,{"$f":"С2!C18","v":0},{"$f":"IF(E27>0,C27*Расчет!$C$8,0)","v":0}]
["3.","Ставка за единицу максимальной мощности на осуществление мероприятий по строительству кабельных линий электропередачи (С3maxN)","Для территорий городских населенных пунктов ","Для территорий, не относящихся к городским населенным пунктам "]
["3.1.","кабельные линии в траншеях одножильные с резиновой или пластмассовой изоляцией сечением провода от 500 до 800 квадратных мм включительно, 1-20 кВ",3001,3001,{"$f":"С3!C8","v":0},{"$f":"IF(E29>0,C29*Расчет!$C$8,0)","v":0}]
["3.2.","кабельные линии в траншеях многожильные с резиновой или пластмассовой изоляцией сечением провода до 50 квадратных мм включительно,  0,4 кВ и ниже",5049,5049,{"$f":"С3!C9","v":0},{"$f":"IF(E30>0,C30*Расчет!$C$8,0)","v":0}]
["3.3.","кабельные линии в траншеях многожильные с резиновой или пластмассовой изоляцией сечением провода от 50 до 100 квадратных мм включительно,  0,4 кВ и ниже",1718,1718,{"$f":"С3!C10","v":0},{"$f":"IF(E31>0,C31*Расчет!$C$8,0)","v":0}]
["3.4.","кабельные линии в траншеях многожильные с резиновой или пластмассовой изоляцией сечением провода от 50 до 100 квадратных мм включительно,  1-20 кВ",3862,3862,{"$f":"С3!C11","v":0},{"$f":"IF(E32>0,C32*Расчет!$C$8,0)","v":0}]
["3.5.","кабельные линии в траншеях многожильные с резиновой или пластмассовой изоляцией сечением провода от 100 до 200 квадратных мм включительно,  0,4 кВ и ниже",2180,2180,{"$f":"С3!C12","v":0},{"$f":"IF(E33>0,C33*Расчет!$C$8,0)","v":0}]
["3.6.","кабельные линии в траншеях многожильные с бумажной изоляцией сечением провода до 50 квадратных мм включительно,  0,4 кВ и ниже",3245,3245,{"$f":"С3!C13","v":0},{"$f":"IF(E34>0,C34*Расчет!$C$8,0)","v":0}]
["3.7.","кабельные линии в траншеях многожильные с бумажной изоляцией сечением провода до 50 квадратных мм включительно,  1-20 кВ",15261,15261,{"$f":"С3!C14","v":0},{"$f":"IF(E35>0,C35*Расчет!$C$8,0)","v":0}]
["3.8.","кабельные линии в траншеях многожильные с бумажной изоляцией сечением провода от 50 до 100 квадратных мм включительно,  0,4 кВ и ниже",3665,3665,{"$f":"С3!C15","v":0},{"$f":"IF(E36>0,C36*Расчет!$C$8,0)","v":0}]
["3.9.","кабельные линии в траншеях многожильные с бумажной изоляцией сечением провода от 50 до 100 квадратных мм включительно,  1-20 кВ",8529,8529,{"$f":"С3!C16","v":0},{"$f":"IF(E37>0,C37*Расчет!$C$8,0)","v":0}]
["3.10.","кабельные линии в траншеях многожильные с бумажной изоляцией сечением провода от 100 до 200 квадратных мм включительно,  0,4 кВ и ниже",4330,4330,{"$f":"С3!C17","v":0},{"$f":"IF(E38>0,C38*Расчет!$C$8,0)","v":0}]
["3.11.","кабельные линии в траншеях многожильные с бумажной изоляцией сечением провода от 100 до 200 квадратных мм включительно,  1-20 кВ",3269,3269,{"$f":"С3!C18","v":0},{"$f":"IF(E39>0,C39*Расчет!$C$8,0)","v":0}]
["3.12.","кабельные линии в траншеях многожильные с бумажной изоляцией сечением провода от 200 до 500 квадратных мм включительно,  0,4 кВ и ниже",4413,4413,{"$f":"С3!C19","v":0},{"$f":"IF(E40>0,C40*Расчет!$C$8,0)","v":0}]
["3.13.","кабельные линии в траншеях многожильные с бумажной изоляцией сечением провода от 200 до 500 квадратных мм включительно,  1-20 кВ",3360,3360,{"$f":"С3!C20","v":0},{"$f":"IF(E41>0,C41*Расчет!$C$8,0)","v":0}]
["4.","Ставка за единицу максимальной мощности на осуществление мероприятий по строительству  трансформаторных подстанций, за исключением распределительных трансформаторных  подстанций с уровнем напряения до 35 кВ (С5maxN)","Для территорий городских населенных пунктов ","Для территорий, не относящихся к городским населенным пунктам "]
["4.1.","однотрансформаторные подстанции (за исключением РТП) мощностью до 25 кВА включительно, 6(10)/0,4 кВ",13274,13274,{"$f":"'C5'!C9","v":0},{"$f":"IF(E43>0,C43*Расчет!$C$8,0)","v":0}]
["4.2.","однотрансформаторные подстанции (за исключением РТП) мощностью от 25 до 100 кВА включительно, 6(10)/0,4 кВ",9087,9087,{"$f":"'C5'!C10","v":0},{"$f":"IF(E44>0,C44*Расчет!$C$8,0)","v":0}]
["4.3.","однотрансформаторные подстанции (за исключением РТП) мощностью от 100 до 250 кВА включительно, 6(10)/0,4 кВ",6239,6239,{"$f":"'C5'!C11","v":0},{"$f":"IF(E45>0,C45*Расчет!$C$8,0)","v":0}]
["4.4.","однотрансформаторные подстанции (за исключением РТП) мощностью от 250 до 400 кВА включительно, 6(10)/0,4 кВ",2781,2781,{"$f":"'C5'!C12","v":0},{"$f":"IF(E46>0,C46*Расчет!$C$8,0)","v":0}]
["4.5.","двухрансформаторные подстанции (за исключением РТП) мощностью от 100 до 250 кВА включительно, 6(10)/0,4 кВ",4024,4024,{"$f":"'C5'!C13","v":0},{"$f":"IF(E47>0,C47*Расчет!$C$8,0)","v":0}]
["4.6.","двухрансформаторные подстанции (за исключением РТП) мощностью от 250 до 400 кВА включительно, 6(10)/0,4 кВ",5540,5540,{"$f":"'C5'!C14","v":0},{"$f":"IF(E48>0,C48*Расчет!$C$8,0)","v":0}]
["4.7.","двухрансформаторные подстанции (за исключением РТП) мощностью от 420 до 1000 кВА включительно, 6(10)/0,4 кВ",2810,2810,{"$f":"'C5'!C15","v":0},{"$f":"IF(E49>0,C49*Расчет!$C$8,0)","v":0}]
["4.8.","двухрансформаторные подстанции (за исключением РТП) мощностью свыше 1000 кВА, 6(10)/0,4 кВ",4934,4934,{"$f":"'C5'!C16","v":0},{"$f":"IF(E50>0,C50*Расчет!$C$8,0)","v":0}]
["5.","Ставка за единицу максимальной мощности на осуществление мероприятий по строительству  трансформаторных подстанций, за исключением распределительных трансформаторных  подстанций с уровнем напряения до 35 кВ (С8maxN)","Для территорий городских населенных пунктов ","Для территорий, не относящихся к городским населенным пунктам "]
["5.1.","Средства коммерческого учета элекрической энергии (мощности) однофазные прямого включения, 0,4 кВ и ниже без ТТ",3021,3021,{"$f":"'C8'!C9","v":0},{"$f":"IF(E52>0,C52*Расчет!$C$8,0)","v":0}]
["5.2.","Средства коммерческого учета элекрической энергии (мощности) о трехфазные прямого включения, 0,4 кВ и ниже без ТТ",1441,1441,{"$f":"'C8'!C10","v":0},{"$f":"IF(E53>0,C53*Расчет!$C$8,0)","v":0}]
["5.3.","Средства коммерческого учета элекрической энергии (мощности) о трехфазные прямого включения, 1-20 кВ",9248,9248,{"$f":"'C8'!C11","v":0},{"$f":"IF(E54>0,C54*Расчет!$C$8,0)","v":0}]
["5.4.","Средства коммерческого учета элекрической энергии (мощности) о трехфазные полукосвенного включения, 0,4 кВ и ниже с ТТ",438,438,{"$f":"'C8'!C12","v":0},{"$f":"IF(E55>0,C55*Расчет!$C$8,0)","v":0}]
["5.5.","Средства коммерческого учета элекрической энергии (мощности) о трехфазные косвенного включения, 1-20 кВ",273,273,{"$f":"'C8'!C13","v":0},{"$f":"IF(E56>0,C56*Расчет!$C$8,0)","v":0}]
[]
["Размер стандартизированных тарифных ставок за технологическое присоединение на покрытие расходов, связанных со строительством объектов электьросетевого хозяйства, определен для третьей категории надежности\nэлектроснабжения.\n<***>Для заявителей, осуществляющих технологическое присоединение своих энергопринимающих устройств максимальной мощностью не более 150 кВт (с учетом мощности ранее присоединенных в данной точке присоединения энергопринимающих устройств), стандартизированные тарифные ставки на покрытие расходов, связанных со строительством  равны нулю.\n\n"]

{"sheet":"Расчет","index":8,"n_rows":55,"n_cols":3,"rows_kept":55,"cut":false,"hidden":false,"merged":[[1,1,1,2],[54,1,54,2],[18,1,18,2],[20,1,20,2],[22,1,22,2],[23,1,23,2],[38,1,38,2],[40,1,40,2],[41,1,41,2]]}
[]
[null,"Расчет платы за технологическое присоединение к электрическим сетям ООО \"ЙОЭсК\""]
[]
[null,"Уровень напряжения энергопринимающих устройств, кВ:",{"$f":"Калькулятор!C4","v":0}]
[]
[null,"Максимальная мощность (с учетом ранее присоединенной), кВт:",{"$f":"Калькулятор!C6","v":0}]
[]
[null,"Максимальная мощность, кВт:",{"$f":"Калькулятор!C8","v":0}]
[]
[null,"Постоянная или временная схема присоединения:",{"$f":"Калькулятор!C10","v":0}]
[]
[null,"Есть ли необходимость строительства воздушных линий?",{"$f":"Калькулятор!C12","v":0}]
[null,"Есть ли необходимость строительства кабельных линий?",{"$f":"Калькулятор!C13","v":0}]
[null,"Есть ли необходимость строительства транформаторных подстанций?",{"$f":"Калькулятор!C14","v":0}]
[]
[]
[]
[]
[null,"Расшифровка расчета платы за технологическое присоединение к электрическим сетям"]
[]
[null,"Плата по стандартизированным тарифным ставкам"]
[]
[null,"П1 = С1 + (С2×L2) + (C3×L3) + C4 + (C5×N4) + C8"]
[null,"( \"чернила\" + ВЛ + КЛ + РП + ТП + ПУ)"]
[]
[]
[null,"С1, руб. за одно присоединение",{"$f":"IF(C8=0,0,С1!C9)","v":0}]
[null,"N = N4, кВт",{"$f":"Калькулятор!C8","v":0}]
[]
[null,"Плата за организационные мероприятия (\"чернила\"), руб.",{"$f":"IF(C28>0,C27,0)","v":0}]
[null,"Плата за строительство воздушных линий (ВЛ), руб.",{"$f":"IF(C6='1'!E2,SUMPRODUCT(С2!B8:B18,С2!C8:C18),0)","v":0}]
[null,"Плата за строительство кабельных линий (КЛ), руб.",{"$f":"IF(C6='1'!E2,SUMPRODUCT(С3!B7:B20,С3!C7:C20),0)","v":0}]
[null,"Плата за строительство распределительных пунктов (РП), руб.",{"$f":"IF(C6='1'!E2,SUMPRODUCT('C4'!B9,'C4'!C9),0)","v":0}]
[null,"Плата за строительство подстанций (ТП), руб.",{"$f":"IF(C6='1'!E2,SUMPRODUCT('C5'!B9:B16,'C5'!C9:C16),0)","v":0}]
[null,"Плата за оборудование прибором учета (ПУ), руб.",{"$f":"IF(C28>0,SUMPRODUCT('C8'!B9:B13,'C8'!C9:C13),0)","v":0}]
[]
[null,"Плата по стандартизированным тарифным ставкам, руб. (без НДС)",{"$f":"C30+C31+C32+C33+C34+C35","v":0}]
[]
[null,"Плата по ставкам за единицу максимальной мощности"]
[]
[null,"П1 = (С1×N) + (С2×N) + (C3×N) +  (C5×N) + (C8×N)"]
[null,"( \"чернила\" + ВЛ + КЛ + РП + ТП + ПУ)"]
[]
[]
[null,"Плата за организационные мероприятия (\"чернила\"), руб.",{"$f":"IF(C8=0,0,IF(C10='1'!H1,ММ!C13,ММ!D13))*C8","v":0}]
[null,"Плата за строительство воздушных линий (ВЛ), руб.",{"$f":"IF(C6='1'!E2,SUM(ММ!F17:F27),0)","v":0}]
[null,"Плата за строительство кабельных линий (КЛ), руб.",{"$f":"IF(C6='1'!E2,SUM(ММ!F29:F41),0)","v":0}]
[null,"Плата за строительство подстанций (ТП), руб.",{"$f":"C34","v":0}]
[null,"Плата за оборудование прибором учета (ПУ), руб.",{"$f":"IF(C6='1'!E2,SUM(ММ!F52:F56),0)","v":0}]
[]
[null,"Плата по ставкам за единицу максимальной мощности, руб. (без НДС)",{"$f":"C45+C46+C47+C48","v":0}]
[]
[]
[]
[null,"Внимание! Данные расчеты носят справочный характер и не могут являться окончательными для оплаты стоимости технологического присоединения. \nКалькулятор расчета платы за технологическое присоединение к электрическим сетям предназначен для примерного расчета стоимости размера платы за технологическое присоединение к электрическим сетям ООО \"ЙОЭсК\""]

{"sheet":"1","index":9,"n_rows":2,"n_cols":11,"rows_kept":2,"cut":false,"hidden":true,"merged":[]}
["НН - 0,4 кВ",null,null,null,"до 150 кВт ",null,null,"Постоянная ",null,null,"Да"]
["СН2 - 20-1 кВ",null,null,null,"свыше 150 кВт",null,null,"Временная",null,null,"Нет"]